Cogmind - Beta 9 @@@ ROGUE MODE // 2019.10.27 @ 09:35:15 Player: ZK Result: Self-destructed Performance ------------- Evolutions (1) 500 Regions Visited (3) 600 Robots Destroyed (27) 135 Value Destroyed (685) 685 Prototype IDs (2) 40 Alien Tech Used (0) 0 Bonus (0) 0 TOTAL SCORE: 1960 Bonus ------- None Cogmind --------- Core Integrity 110/400 Matter 290/300 Energy 100/100 System Corruption 0% Temperature Cool (0) Location -9/Mines Parts ------- Power (1) Propulsion (3) Light Treads Utility (3) Medium Storage Unit Large Storage Unit Targeting Computer Weapon (2) Inventory (14) Ion Engine Light Ion Engine Light Treads Aluminum Leg Medium Storage Unit Visual Processing Unit Signal Interpreter Transmission Jammer ECM Suite Hardened Light Armor Plating Beam Rifle Particle Gun Rocket Launcher Peak State ------------ Power Light Ion Engine Propulsion Light Treads Aluminum Leg Aluminum Leg Utility Medium Storage Unit Large Storage Unit Targeting Computer Weapon Heavy Assault Rifle Autogun Inventory Light Ion Engine Light Treads Light Treads Aluminum Leg Medium Storage Unit Visual Processing Unit Signal Interpreter Transmission Jammer ECM Suite Hardened Light Armor Plating Beam Rifle Beam Rifle Rocket Launcher [Rating: 13] Favorites ----------- Power Light Ion Engine Engine Light Ion Engine Propulsion Aluminum Leg Treads Light Treads Leg Aluminum Leg Utility Medium Storage Unit Storage Medium Storage Unit Processor Targeting Computer Weapon Assault Rifle Energy Gun Small Laser Ballistic Gun Assault Rifle Build | -11 -10 -9 -9 ------- Run | Scr Mat Mat Min Slots Evolved 2 | . . 2 . Power . | . . . . Propulsion 1 | . . 1 . Utility 1 | . . 1 . Weapon . | . . . . Parts Attached 27 | 6 9 10 2 Power 4 | 1 . 2 1 Engine 4 | 1 . 2 1 Core . | . . . . Reactor . | . . . . Propulsion 8 | 2 3 2 1 Treads 2 | . . 1 1 Leg 6 | 2 3 1 . Wheel . | . . . . Hover . | . . . . Flight . | . . . . Utility 5 | 1 2 2 . Device . | . . . . Storage 4 | 1 1 2 . Processor 1 | . 1 . . Hackware . | . . . . Protection . | . . . . Artifact . | . . . . Weapon 10 | 2 4 4 . Energy Gun 4 | 1 2 1 . Energy Cannon . | . . . . Ballistic Gun 6 | 1 2 3 . Ballistic Cannon . | . . . . Launcher . | . . . . Special Weapon . | . . . . Impact Weapon . | . . . . Slashing Weapon . | . . . . Piercing Weapon . | . . . . Special Melee Weapon . | . . . . Unidentified Prototypes . | . . . . Parts Lost 10 | . . 4 6 Power 2 | . . 1 1 Propulsion 3 | . . . 3 Utility . | . . . . Weapon 5 | . . 3 2 Highest Loss Streak 6 | . . 2 6 Average Slot Usage (%) 96 | . 91 99 94 Engine 11 | . 14 10 9 Treads 8 | . . 11 11 Leg 23 | . 28 22 19 Storage 19 | . 14 22 22 Processor 9 | . 6 11 11 Energy Gun 6 | . 14 5 . Ballistic Gun 16 | . 14 16 20 Naked Turns . | . . . . Heaviest Build 35 | 11 14 33 35 Greatest Support 20 | 20 20 20 20 Greatest Overweight (x) 9 | . . 1 9 Average Overweight (x) . | . . 1 1 Largest Inventory Capacity 14 | 6 8 14 14 Average Capacity 10 | 5 6 12 14 Most Carried 14 | 6 7 13 14 Average Carried 9 | 3 6 10 13 Final Capacity 14 | . . . 14 Final Carried 13 | . . . 13 Class Distribution -------------------- 73% | Mutant 26% | Scavenger-Mutant Dominant Class ---------------- Mutant | -10/Materials Mutant | -9/Materials Scavenger-Mutant | -9/Mines Resources | -11 -10 -9 -9 ----------- Run | Scr Mat Mat Min Matter Collected 646 | 247 131 216 52 Remotely . | . . . . Salvage Created 937 | . 316 475 146 Parts 59 | . 28 26 5 Haulers Intercepted . | . . . . Recyclers Shooed 2 | . 1 1 . Parts Field Recycled . | . . . . Retrieved Matter . | . . . . Parts Self-Destructed . | . . . . Prevented . | . . . . Kills | -11 -10 -9 -9 ------- Run | Scr Mat Mat Min Combat Hostiles Destroyed 26 | . 13 10 3 Guns 26 | . 13 10 3 Classes Destroyed 4 | . 2 2 . Recycler 1 | . . 1 . Swarmer 12 | . 9 3 . Grunt 10 | . 4 3 3 Sentry 4 | . . 4 . Best Kill Streak 4 | . 4 4 3 Combat Bots Only 4 | . 4 4 3 Max Kills in Single Turn 2 | . 2 2 1 Gunslinging 1 | . 1 1 . Exploded . | . . . . Melee . | . . . . Uniques/NPCs Destroyed . | . . . . Combat | -11 -10 -9 -9 -------- Run | Scr Mat Mat Min Damage Taken 2027 | . 330 719 978 Core 341 | . 51 113 177 Absorbed by Shields . | . . . . Core Remaining (%) 89 | 100 79 . . Volleys Fired 65 | . 28 31 6 Largest 2 | . 2 2 2 Hottest 79 | . 70 79 46 Shots Fired 128 | . 56 60 12 Gun 128 | . 56 60 12 Cannon . | . . . . Launcher . | . . . . Special . | . . . . Kinetic 88 | . 28 48 12 Thermal 40 | . 28 12 . Explosive . | . . . . Electromagnetic . | . . . . Robot Hit Streak 21 | . 8 21 12 Robot Miss Streak 2 | . 2 2 . Penetration Max . | . . . . Secondary Targets 4 | . 1 3 . Max Gunslinging Chain 1 | . 1 1 . Shots Hit Robots 99 | . 38 51 10 Core Hits 44 | . 19 20 5 Critical Hits 1 | . . 1 . Critical Kills 1 | . . 1 . Critical Parts Destroyed . | . . . . Melee Attacks . | . . . . Impact . | . . . . Slashing . | . . . . Piercing . | . . . . Sneak Attacks . | . . . . Combat Hostiles . | . . . . Follow-up Attacks . | . . . . Damage Inflicted 1231 | . 413 674 144 Guns 1231 | . 413 674 144 Cannons . | . . . . Explosions . | . . . . Melee . | . . . . Ramming . | . . . . Kinetic 794 | . 150 500 144 Thermal 437 | . 263 174 . Explosive . | . . . . Electromagnetic . | . . . . Impact . | . . . . Slashing . | . . . . Piercing . | . . . . Highest Corruption . | . . . . Average Corruption . | . . . . Corruption Purged . | . . . . Overload Shots . | . . . . Overflow Damage . | . . . . Projectiles . | . . . . Explosions . | . . . . Melee . | . . . . Knockbacks . | . . . . Impact . | . . . . Kinetic . | . . . . Secondary . | . . . . Self-Inflicted Damage . | . . . . Shots . | . . . . Rammed . | . . . . Targets Rammed . | . . . . Kicked . | . . . . Crushed . | . . . . Highest Temperature 149 | . 138 149 18 Average Temperature 52 | . 50 61 10 Received Heat Transfer 366 | . 96 228 42 Siege Activations . | . . . . Robots Corrupted . | . . . . Combat Hostiles . | . . . . Parts Fried . | . . . . Impact Corruptions . | . . . . Robots Melted . | . . . . Combat Hostiles . | . . . . Parts Melted 2 | . 1 1 . Heat Transferred 1162 | . 718 444 . Parts Sabotaged . | . . . . Parts Stolen . | . . . . Parts Stripped . | . . . . Power Chain Reactions . | . . . . Missiles Intercepted . | . . . . Alert | -11 -10 -9 -9 ------- Run | Scr Mat Mat Min Peak Influence 372 | . 372 262 70 Average Influence 126 | . 212 116 56 Maximum Alert Level 1 | . 1 1 . Low Security (%) 72 | . . . . Level 1 27 | . . . . Level 2 . | . . . . Level 3 . | . . . . Level 4 . | . . . . Level 5 . | . . . . High Security . | . . . . Max Security . | . . . . Squads Dispatched 3 | . 2 1 . Investigation . | . . . . Extermination . | . . . . Reinforcement 3 | . 2 1 . Assault . | . . . . Garrison . | . . . . Intercept . | . . . . Construction Impeded . | . . . . Haulers Reinforced . | . . . . Stealth | -11 -10 -9 -9 --------- Run | Scr Mat Mat Min Distress Signals 5 | . 1 4 . Communications Jammed . | . . . . Distress Signals . | . . . . Times Spotted 38 | . 18 15 5 Peak Tracking Total 7 | . 7 5 3 Tactical Retreats 3 | . 2 1 . Traps | -11 -10 -9 -9 ------- Run | Scr Mat Mat Min Traps Triggered . | . . . . Indirectly . | . . . . Trap Hack Attempts . | . . . . Triggered . | . . . . Disarmed . | . . . . Reprogrammed . | . . . . Reused . | . . . . Traps Extracted . | . . . . Installed . | . . . . Triggered . | . . . . Machines | -11 -10 -9 -9 ---------- Run | Scr Mat Mat Min Machines Disabled . | . . . . Max in Single Turn . | . . . . Machines Sabotaged . | . . . . Garrisons Compromised . | . . . . Overloaded Fab Kills . | . . . . Fab Network Shutdowns . | . . . . Hacking | -11 -10 -9 -9 --------- Run | Scr Mat Mat Min Machines Accessed 4 | . 2 2 . Terminals 3 | . 1 2 . Fabricators . | . . . . Repair Stations . | . . . . Recycling Units 1 | . 1 . . Scanalyzers . | . . . . Garrison Access . | . . . . Total Hacks 15 | . 6 9 . Successful 9 | . 4 5 . Failed 6 | . 2 4 . Catastrophic 2 | . 1 1 . Database Lockouts . | . . . . Manual 9 | . 1 8 . Terminals 12 | . 3 9 . Fabricators . | . . . . Repair Stations . | . . . . Recycling Units 3 | . 3 . . Scanalyzers . | . . . . Garrison Access . | . . . . Terminal Hacks 7 | . 2 5 . Prototype ID Bank 1 | . . 1 . Branch Access Points 2 | . 1 1 . Unreport Threat 1 | . . 1 . Locate Traps 1 | . 1 . . Security Status 1 | . . 1 . Zone Layout 1 | . . 1 . Fabricator Hacks . | . . . . Repair Station Hacks . | . . . . Recycling Unit Hacks 2 | . 2 . . Report Inventory 1 | . 1 . . Retrieve Components 1 | . 1 . . Scanalyzer . | . . . . Garrison Access Hacks . | . . . . Unauthorized Hacks . | . . . . Terminals . | . . . . Fabricators . | . . . . Repair Stations . | . . . . Recycling Units . | . . . . Scanalyzers . | . . . . Garrison Access . | . . . . Data Cores Recovered . | . . . . Used . | . . . . Hacking Detections 3 | . 1 2 . Full Trace Events 1 | . 1 . . Feedback Events . | . . . . Feedback Blocked . | . . . . Robot Schematics Acquired . | . . . . Robots Built . | . . . . Matter . | . . . . Time . | . . . . Total Robot Build Rating . | . . . . Part Schematics Acquired . | . . . . Parts Built . | . . . . Matter . | . . . . Time . | . . . . Total Part Build Rating . | . . . . Parts Repaired . | . . . . Time . | . . . . Parts Recycled . | . . . . Recycled Matter . | . . . . Retrieved Matter . | . . . . Retrieved Components 9 | . 9 . . Parts Scanalyzed . | . . . . Part Schematics Acquired . | . . . . Parts Damaged . | . . . . Bothacking | -11 -10 -9 -9 ------------ Run | Scr Mat Mat Min Used RIF Installer . | . . . . Robots Hacked . | . . . . Non-combat . | . . . . Combat . | . . . . Robot Hacks Applied . | . . . . Relay Couplers Released . | . . . . Robots Rewired . | . . . . Allies Hacked . | . . . . Hacks Repelled . | . . . . Allies | -11 -10 -9 -9 -------- Run | Scr Mat Mat Min Total Allies . | . . . . Largest Group . | . . . . Highest-Rated Group . | . . . . Highest-Rated Ally . | . . . . Total Orders . | . . . . Ally Attacks . | . . . . Total Damage . | . . . . Kills . | . . . . Allies Corrupted . | . . . . Allies Melted . | . . . . Intel | -11 -10 -9 -9 ------- Run | Scr Mat Mat Min Robot Analysis Total . | . . . . Derelict Logs Recovered 1 | . . . 1 Drone Launches . | . . . . Drone Recoveries . | . . . . Exploration | -11 -10 -9 -9 ------------- Run | Scr Mat Mat Min Turns Passed 1570 | 79 405 863 223 Spaces Moved 893 | 58 245 465 125 Core 8 | 7 . . 1 Treads 7 | . . . 7 Legs 878 | 51 245 465 117 Wheels . | . . . . Hover . | . . . . Flight . | . . . . Fastest Speed 50 | 50 120 150 150 Average Speed 140 | 111 120 150 155 Slowest Speed 500 | 120 120 150 500 Overloaded Moves . | . . . . Propulsion Burnouts . | . . . . Robots Hopped . | . . . . Cave-ins Triggered 1 | . . . 1 Exploration Rate (%) 27 | 4 33 31 41 Regions Visited 3 Branch Regions 1 Pre-discovered Areas . | . . . . Known Exits Taken 1 | . . 1 . Unknown Exits Taken 2 | 1 1 . . Scrap Searched . | . . . . Spaces Dug . | . . . . Terrain Destroyed . | . . . . Melee . | . . . . Projectile . | . . . . AOE . | . . . . Actions | -11 -10 -9 -9 --------- Run | Scr Mat Mat Min Total 1098 | 69 308 577 144 Wait 79 | . 14 58 7 Move 890 | 57 244 464 125 Hop . | . . . . Pick Up 22 | 6 3 11 2 Fast Attach 7 | 6 1 . . Attach 8 | . . 7 1 Detach 1 | . . 1 . Swap 12 | . 8 3 1 Drop 14 | . 10 2 2 Fire 65 | . 28 31 6 Melee . | . . . . Ram . | . . . . Kick . | . . . . Crush . | . . . . Escape Stasis . | . . . . Rewire . | . . . . Trap . | . . . . Miscellaneous . | . . . . Route ------- -11/Scrapyard -10/Materials (discovered 3 exits: *Mat / Min x2) -9/Materials (discovered 3 exits: [*Mat] / *Min x2) -9/Mines (discovered 1 exit: [*Mat]) History --------- Turn | Location | Event 8 | -11/Scrapyard | Discovered new exit (range 16) 80 | -11/Scrapyard | Entered Materials 246 | -10/Materials | Identified exit to Mines 303 | -10/Materials | Build established: Mutant 391 | -10/Materials | Discovered new exit (range 6) 485 | -10/Materials | Entered another Materials area 485 | -9/Materials | Evolved 2 slots: Propulsion x1, Utility x1 487 | -9/Materials | Discovered new exit (range 15) 884 | -9/Materials | Identified exit to Mines 1112 | -9/Materials | Discovered new exit (range 16) 1348 | -9/Materials | Entered Mines 1396 | -9/Mines | Discovered new exit (range 5) 1502 | -9/Mines | Assembled infested the area 1507 | -9/Mines | Assisted by a Guerilla fighting off Assembled 1511 | -9/Mines | Learned Materials emergency access door positions 1557 | -9/Mines | Core integrity fell below 50% 1571 | -9/Mines | Crushed by falling debris 1571 | -9/Mines | Self-destructed Last Messages --------------- 01535_ C-30 ARC bursts open, deploying its payload. 01535_ D-53 Grenadier unfolds itself. 01537_ K-01 Serf collects debris. 01538_ T-07 Excavator destroyed. 01540_ K-01 Serf collects debris. 01542_ The unstable cave ceiling collapses. 01542_ Aluminum Leg destroyed. 01543_ The unstable cave ceiling collapses. 01543_ K-01 Serf collects debris. 01543_ Ion Engine destroyed. 01544_ The unstable cave ceiling collapses. 01551_ Lgt. Treads destroyed. 01551_ Aluminum Leg destroyed. 01553_ Autogun destroyed. 01555_ R-06 Scavenger destroyed. 01556_ Hvy. Assault Rifle destroyed. 01557_ The unstable cave ceiling collapses. 01559_ R-06 Scavenger destroyed. 01560_ The unstable cave ceiling collapses. 01571_ Crushed by falling debris. Map ----- +----------------------------------------------------+ | ?????????????????????????????????????????????????? | | ?????????????????????????????????????????????????? | | ?????????????????????????????????????????????????? | | ?????????????????????????????????????????????????? | | ?????????????????????????????????????????????????? | | ?????????????????????????????????????????????????? | | ?????????????????????????????????????????????????? | | ?????????????????????????????????????????????????? | | ?????????????????????????????????????????????????? | | ?????????????????????????????????????????????????? | | ??????????????????????? ???????????????????????? | | ????????????????????? ???????????????????????? | | ??????????????????? ???? ????????????????? | | ??????????????????? ""? ?????????????????? | | ???????????????????? """ ?????????????????? | | ???????????????????? """ ??????????????????? | | ????????????????????# ??????????????????? | | ????????????????????# #??????????????????? | | ????????????????????# #??????????????????? | | ???????????????????## #??????????????????? | | ??????????????????## t ???????????????????? | | ?????????????????## #???????????????????? | | ?????????????????# ##??????????????????? | | ?????????????????# #??????????????????? | | ????????????????## ##?????????????????? | | ???????????????## @ #?????????????????? | | ??????????????## # #?????????????????? | | ??????????????# ##?????????????????? | | ??????????????# #??????????????????? | | ??????????????# # #??????????????????? | | ??????????????# ## #??????????????????? | | ??????????????## #?#??????????????????? | | ???????????????## ##????????????????????? | | ????????????????# # ##?????????????????????? | | ????????????????# d # ## #??????????????????? | | ????????????????# # d #??????????????????? | | ????????????????## ####??????????????????? | | ????????????????# ##?????????????????????? | | ???????????????## # #??????????????????????? | | ??????????????### #??????????????????????? | | ??????????????# ####????????????????????? | | ??????????????## #????????????????????? | | ??????????????# # #?????????????####### | | ??????????????# = #????????????# | | ??????????????# # #???????????# | | ??????????????## ## #???????????# %! | | ???????????????# ### ?????????# !% | | ???????????????## ?????????##%#### | | ????????????????# ##### ?????????# #??? | | ???????????????## #????##########?? ??????#*#??? | +----------------------------------------------------+ Best States ------------- Heat Dissipation 28 Energy Generation 10 Energy Capacity 250 Matter Stores 300 Matter Capacity 300 Sight Range 16 Terrain Scan Density 10 Evasion (%) 40 Targeting Accuracy 5 Recoil Reduction 1 Item Schematics ----------------- None Robot Schematics ------------------ None Fabricated ------------ Nothing Alien Tech Used ----------------- None Achievements -------------- None Challenges ------------ None Game ------ Seed CompactReinforcedMinigun Manual? 0 Play Time 00:13:34 Cumulative 44.0 hours Start 2019.10.27 @ 09:22:58 End 2019.10.27 @ 09:35:15 Sessions 1 Manual Loads 0 Difficulty Rogue Special Mode None Game No. 48 Rogue 48 Adventurer 0 Explorer 0 Win Type - Total 0 Types 0/0/0/0/0/0/0 Lore% 39 Gallery% 34 Achievement% 29 Wizard Run 0 Options --------- ASCII 0 Keyboard 1 Movement Numpad Keybinds 0 Fullscreen 1 Font 18/SmallcapsGlow Map View 76x50 Tactical HUD 1 Map Filters NONE Filters NONE Steam 1 RUN: 28977b43-0ddf-47cc-992f-d9a3b3e7de5a